bitfinex-derivatives/quotes_ETHF0:USTF0_20250624
["timestamp","ask_amount","ask_price","bid_price","bid_amount"]
[1750785716720,0.8109,2465.1,2465.0,0.81091]
[1750785716919,3.57535,2465.3,2465.2,0.81086]
[1750785717216,2.7645,2465.3,2464.9,3.2078]
[1750785717721,0.81087,2465.2,2465.1,0.81088]
[1750785717922,3.57535,2465.3,2465.2,0.81086]
[1750785718220,3.57535,2465.3,2465.0,1.3888]
[1750785718221,0.81088,2465.2,2465.1,0.81089]
[1750785718424,2.7645,2465.3,2464.9,3.2078]
[1750785718615,0.81093,2465.1,2465.0,0.81093]
[1750785718921,0.81093,2465.0,2464.9,4.01874]
[1750785719221,0.81095,2465.0,2464.9,0.81096]
[1750785719412,2.02717,2465.2,2464.6,3.2078]
[1750785719608,0.81103,2464.8,2464.7,0.81102]
[1750785720118,0.81101,2464.8,2464.7,0.811]
[1750785720314,26.821,2464.9,2464.3,7.66]
[1750785720624,0.81108,2464.6,2464.5,4.01887]
[1750785721522,26.821,2464.9,2464.7,0.811]
[1750785721713,27.63101,2464.8,2464.7,0.811]
[1750785721913,2.7645,2465.3,2464.7,3.2078]
[1750785722114,0.81072,2465.7,2465.6,0.81071]
[1750785722321,26.845,2465.8,2465.1,2.02725]
[1750785722627,0.81074,2465.7,2465.6,0.81071]
[1750785722813,26.849,2465.8,2465.4,1.4117]
[1750785723015,26.849,2465.8,2465.4,2.8745]
[1750785723326,28.3104,2465.8,2465.4,2.8745]
[1750785723621,27.65772,2465.7,2465.6,0.81071]
[1750785723924,35.32068,2465.8,2465.7,0.81067]
[1750785724121,0.81068,2465.8,2465.7,0.81068]
[1750785724328,0.81058,2466.1,2465.7,3.2078]
[1750785724526,26.844,2466.1,2465.8,1.4117]
[1750785724727,0.81063,2465.9,2465.8,2.22235]
[1750785725219,26.844,2466.1,2465.6,3.2078]
[1750785725426,3.2078,2465.9,2464.1,3.97913727]
[1750785725618,3.2078,2464.3,2464.1,0.81121]
[1750785725812,3.2078,2464.3,2463.8,1.4286]
[1750785726517,0.81123,2464.1,2463.9,0.81126]
[1750785726718,0.81121,2464.2,2464.0,2.23984]
[1750785726929,0.81123,2464.1,2464.0,1.4286]
[1750785727227,3.2078,2464.3,2464.2,0.81119]
[1750785727420,4.01896,2464.3,2464.2,0.81119]
[1750785727619,3.2078,2464.3,2464.1,2.24191]
[1750785727820,3.2078,2464.3,2464.1,1.4307]
[1750785727821,0.81119,2464.2,2464.1,1.4307]
[1750785728025,3.2078,2464.3,2463.8,0.81131]
[1750785728222,3.2078,2464.3,2464.1,0.81123]
[1750785728526,0.81122,2464.2,2464.1,0.81123]
[1750785728720,0.8112,2464.2,2464.1,0.81122]
[1750785729125,5.23575,2464.3,2463.4,2.02859]
[1750785729422,3.2078,2463.6,2463.5,4.9506]
[1750785729623,4.01919,2463.6,2463.5,2.7471]
[1750785729929,4.01921,2463.6,2463.0,1.3921]
[1750785730225,4.01921,2463.6,2463.3,0.81147]
[1750785730422,0.81142,2463.5,2463.3,0.81147]
[1750785730617,3.2078,2463.6,2463.4,0.81145]
[1750785730817,3.2078,2463.6,2463.5,0.81142]
[1750785731220,3.2078,2463.9,2463.3,2.02873]
[1750785731431,4.01909,2463.9,2463.7,0.81134]
[1750785731726,0.81132,2463.8,2463.6,0.81138]
[1750785731926,4.01911,2463.9,2463.6,0.81138]
[1750785732124,4.01911,2463.9,2463.7,0.81135]
[1750785732529,4.01911,2463.9,2463.2,12.2619]
[1750785732530,4.01911,2463.9,2463.6,0.81137]
[1750785732930,4.01911,2463.9,2463.7,0.81135]
[1750785733228,3.2078,2463.9,2463.5,0.8114]
[1750785733527,3.2078,2463.9,2463.4,0.81144]
[1750785733717,3.2078,2463.6,2462.8,3.2078]
[1750785734030,3.2078,2463.3,2463.2,0.81151]
[1750785734237,3.2078,2463.3,2462.9,4.2236]
[1750785734725,3.2078,2463.3,2463.2,0.81152]
[1750785735129,1.3617,2463.7,2463.6,0.81139]
[1750785735427,2.17306,2463.7,2463.5,0.8114]
[1750785735627,1.3617,2463.7,2463.4,0.81145]
[1750785735822,3.2078,2463.8,2463.7,0.81136]
[1750785737223,3.2078,2463.8,2463.7,2.22786]
[1750785737429,10.94431766,2464.5,2463.7,2.22786]
[1750785737430,3.2078,2464.2,2464.1,0.81123]
[1750785738134,0.81113,2464.4,2464.3,0.81114]
[1750785738326,6.0758,2464.5,2464.4,0.81113]
[1750785738631,3.2078,2464.8,2464.7,0.81103]
[1750785739133,3.2078,2465.2,2464.9,0.81094]
[1750785739432,0.81093,2465.0,2464.9,0.81094]
[1750785739634,4.01867,2465.2,2465.1,0.8109]
[1750785739935,3.2078,2465.2,2464.7,1.4275]
[1750785740234,0.811,2464.8,2464.7,2.2385]
[1750785740731,3.2078,2464.9,2464.8,0.811]
[1750785740931,3.2078,2464.9,2464.7,1.4275]
[1750785741126,3.2078,2464.9,2464.5,1.3747]
[1750785741127,3.2078,2464.9,2464.6,0.81105]
[1750785741327,0.81103,2464.7,2464.6,0.81105]
[1750785741527,3.2078,2464.9,2464.8,0.811]
[1750785743435,4.01876,2464.9,2464.8,0.811]
[1750785743733,3.2078,2464.9,2464.8,0.811]
[1750785744236,4.01876,2464.9,2464.8,0.811]
[1750785744832,0.81102,2464.8,2464.7,0.811]
[1750785745039,0.81106,2464.7,2464.6,0.81104]
[1750785745231,0.81108,2464.6,2464.5,0.81107]
[1750785745738,6.58993,2464.9,2464.6,0.81103]
[1750785745739,0.81105,2464.7,2464.6,0.81103]
[1750785745938,0.81109,2464.6,2464.5,0.81108]
[1750785747432,0.81113,2464.5,2464.4,0.81111]
[1750785747631,0.81116,2464.4,2464.3,0.81114]
[1750785748141,6.0448,2464.6,2464.1,2.02807]
[1750785748439,6.85586,2464.6,2464.5,0.81109]
[1750785748631,0.81113,2464.5,2464.4,0.8111]
[1750785748832,6.85589,2464.6,2464.5,0.81109]
[1750785749639,3.2078,2464.6,2464.5,0.81109]
[1750785750242,4.01886,2464.6,2464.5,0.81109]
[1750785750441,0.81114,2464.5,2464.4,0.8111]
[1750785750635,4.01887,2464.6,2464.5,0.81109]
[1750785751437,3.2078,2464.6,2464.5,0.81109]
[1750785751839,3.2078,2464.9,2464.8,0.811]
[1750785752048,1.3557,2465.0,2464.9,0.81096]
[1750785752640,0.81086,2465.2,2465.1,0.8109]
[1750785752844,0.811,2464.9,2464.8,0.81097]
[1750785753050,4.0188,2464.9,2464.8,0.81097]
[1750785753237,3.2078,2464.9,2464.8,0.81097]
[1750785753839,0.81109,2464.5,2464.4,0.81108]
[1750785754143,0.81125,2464.1,2464.0,0.81123]
[1750785754346,0.81127,2464.0,2463.9,0.81126]
[1750785754545,0.81129,2463.9,2463.8,0.81132]
[1750785754741,0.81142,2463.6,2463.5,0.81141]
[1750785754947,4.01919,2463.6,2463.5,0.81141]
[1750785755340,3.2078,2463.6,2463.5,0.81141]
[1750785756349,4.01919,2463.6,2463.5,0.81141]
[1750785756544,3.2078,2463.6,2463.1,2.7568]
[1750785756849,0.81149,2463.3,2463.1,2.15393]
[1750785757041,0.81149,2463.3,2463.1,0.81153]
[1750785757243,0.81147,2463.4,2463.3,0.81149]
[1750785757450,2.18924,2463.5,2463.4,0.81146]
[1750785757849,0.81147,2463.4,2463.3,0.81148]
[1750785758244,0.81149,2463.3,2463.2,0.8115]
[1750785758450,1.3778,2463.5,2463.0,2.7298]
[1750785758642,0.81149,2463.3,2463.2,0.8115]
[1750785758842,0.81147,2463.4,2463.3,0.81148]
[1750785759054,0.81144,2463.5,2463.4,0.81143]
[1750785759448,0.81148,2463.4,2463.3,0.81148]
[1750785759749,0.81138,2463.7,2463.6,0.81138]
[1750785759950,1.3734,2463.8,2463.0,2.7298]
[1750785759951,1.3734,2463.8,2463.0,4.75874]
[1750785760148,3.2078,2463.6,2463.0,12.46474]
[1750785760348,0.81148,2463.4,2463.3,0.81147]
[1750785760542,0.81147,2463.4,2463.3,0.81146]
[1750785760944,2.13795,2463.5,2463.4,0.81146]
[1750785761151,0.81146,2463.4,2463.3,0.81147]
[1750785761452,9.0325,2463.5,2463.4,0.81146]
[1750785761641,15.66241766,2463.5,2462.3,2.33386601]
[1750785761842,3.2078,2462.9,2462.3,0.30437601]
[1750785762042,3.2078,2462.6,2462.3,0.30437601]
[1750785762241,3.2078,2462.6,2462.5,0.81175]
[1750785762445,44.0078,2462.9,2462.4,1.3352]
[1750785762644,3.2078,2462.6,2462.2,1.4054]
[1750785762841,0.81177,2462.5,2462.4,0.81177]
[1750785763042,7.534,2462.5,2462.1,1.3199]
[1750785763244,0.81189,2462.1,2461.1,3.2078]
[1750785763449,3.2078,2461.8,2461.7,0.81202]
[1750785764043,3.2078,2461.8,2461.5,0.81205]
[1750785764249,3.2078,2461.8,2461.2,4.5277]
[1750785764441,3.2078,2461.8,2461.3,1.3352]
[1750785764647,3.2078,2461.5,2461.4,0.81212]
[1750785765449,3.2078,2461.8,2461.7,0.81202]
[1750785765650,3.2078,2461.8,2461.6,0.81203]
[1750785766845,3.2078,2461.8,2461.7,0.81202]
[1750785767246,3.2078,2461.8,2461.3,1.3352]
[1750785767446,3.2078,2461.8,2461.7,0.81202]
[1750785768655,10.03128766,2462.5,2461.7,0.81202]
[1750785768656,0.81188,2462.2,2461.7,8.2078]
[1750785768852,0.81184,2462.3,2462.1,0.81187]
[1750785769355,0.81176,2462.5,2462.3,0.81181]
[1750785769554,7.537,2462.5,2461.9,2.906]
[1750785769750,0.81195,2461.9,2461.7,0.812]
[1750785770051,3.2078,2462.2,2461.5,4.6581]
[1750785770258,10.98192,2462.1,2461.5,4.6581]
[1750785770462,0.81201,2461.8,2461.6,0.81204]
[1750785770758,0.81204,2461.7,2461.5,5.47017]
[1750785770949,0.81204,2461.7,2461.6,0.81205]
[1750785771152,0.81212,2461.4,2461.3,1.4557]
[1750785771355,3.2078,2461.6,2461.0,1.3801]
[1750785771556,7.538,2461.7,2461.1,3.2078]
[1750785771752,7.538,2461.7,2461.3,0.81215]
[1750785771956,0.81209,2461.5,2461.4,0.81212]
[1750785772153,4.6207,2461.6,2460.9,3.45177]
[1750785772347,4.6207,2461.6,2461.0,1.3801]
[1750785772552,7.538,2461.9,2461.2,2.03046]
[1750785772756,1.4521,2462.1,2461.9,0.81192]
[1750785772954,1.4521,2462.1,2462.0,0.81192]
[1750785773154,0.81181,2462.4,2461.7,3.2078]
[1750785773354,0.81181,2462.4,2462.3,0.81182]
[1750785773564,0.81183,2462.3,2462.2,0.81184]
[1750785773858,0.81179,2462.4,2462.3,0.8118]
[1750785774258,10.7458,2462.5,2462.0,1.3801]
[1750785774259,0.81183,2462.3,2462.2,0.81184]
[1750785774861,10.7458,2462.5,2462.1,0.81187]
[1750785775158,0.81188,2462.2,2462.1,0.81187]
[1750785775358,0.81188,2462.2,2462.0,2.192]
[1750785775554,0.81184,2462.3,2462.0,1.3801]
[1750785775762,0.81184,2462.3,2462.1,0.81188]
[1750785776261,0.81181,2462.4,2462.2,0.81185]
[1750785776563,7.539,2462.4,2462.0,4.5879]
[1750785776760,0.81186,2462.2,2462.1,0.81188]
[1750785777158,0.81188,2462.1,2462.0,0.81191]
[1750785777455,1.4066,2462.3,2462.2,0.81185]
[1750785777660,0.81184,2462.3,2462.2,0.81184]
[1750785778458,7.539,2462.4,2461.8,1.3302]
[1750785778661,0.8119,2462.1,2462.0,0.81189]
[1750785779963,0.81187,2462.2,2462.1,0.81186]
[1750785780358,0.81198,2461.9,2461.8,0.81196]
[1750785780655,0.81205,2461.7,2461.6,0.81203]
[1750785781066,0.81208,2461.5,2461.4,4.01989]
[1750785781261,8.8917,2462.0,2461.4,3.2078]
[1750785781467,0.81201,2461.8,2461.7,0.812]
[1750785781652,2.02991,2461.9,2461.4,3.2078]
[1750785781966,0.81205,2461.7,2461.6,0.81203]
[1750785782467,0.81201,2461.8,2461.7,0.81199]
[1750785782656,12.24151,2462.0,2461.5,1.3757]
[1750785782657,2.02991,2461.9,2461.5,1.3757]
[1750785782961,0.81204,2461.7,2461.6,0.81203]
[1750785783163,0.812,2461.8,2461.7,0.81199]
[1750785783360,8.35094,2462.0,2461.9,0.81192]
[1750785783557,0.81202,2461.8,2461.7,0.81199]
[1750785783762,0.81205,2461.7,2461.6,0.81203]
[1750785783960,0.81205,2461.6,2461.5,2.18776]
[1750785784168,0.81198,2461.9,2461.8,0.81196]
[1750785784465,0.81204,2461.7,2461.6,0.81202]
[1750785784667,0.81192,2462.1,2462.0,0.81188]
[1750785784867,8.35088,2462.2,2462.1,0.81188]
[1750785785064,3.2078,2462.9,2462.1,6.3465]
[1750785785262,3.2078,2462.9,2462.5,3.2078]
[1750785785565,0.81168,2462.8,2462.7,0.81165]
[1750785785764,0.81169,2462.7,2462.6,1.3465]
[1750785786067,4.01944,2462.9,2462.8,0.81165]
[1750785786264,0.81169,2462.8,2462.7,0.81166]
[1750785786666,0.81169,2462.7,2462.6,2.1582]
[1750785786872,0.81182,2462.4,2462.3,0.8118]
[1750785787461,0.81174,2462.6,2462.2,1.4161]
[1750785787669,0.81177,2462.5,2462.4,0.81175]
[1750785787964,2.02924,2462.7,2461.7,3.2078]
[1750785788166,0.81181,2462.4,2462.3,0.8118]
[1750785788664,7.539,2462.6,2462.1,3.2078]
[1750785788866,0.8118,2462.4,2462.3,0.81179]
[1750785789367,0.81185,2462.2,2462.1,3.2078]
[1750785789672,0.81185,2462.2,2462.1,0.81188]
[1750785789872,0.81185,2462.2,2461.9,0.81194]
[1750785789873,0.81195,2462.0,2461.9,0.81194]
[1750785790174,0.81192,2462.1,2462.0,0.8119]
[1750785790368,0.81194,2462.0,2461.9,0.81193]
[1750785790764,0.81194,2462.0,2461.0,5.23841]
[1750785790765,11.86753766,2462.0,2461.0,5.23841]
[1750785790961,0.81208,2461.5,2461.4,3.2078]
[1750785791172,0.8122,2461.2,2461.1,3.2078]
[1750785791367,0.8122,2461.2,2460.9,2.7687]
[1750785791368,1.3913,2461.4,2460.9,2.7687]
[1750785791575,0.81222,2461.1,2461.0,0.81222]
[1750785791870,1.3913,2461.4,2460.9,2.7687]
[1750785792070,1.3913,2461.4,2460.9,3.58096]
[1750785792271,0.81225,2461.0,2460.9,6.78876]
[1750785792866,0.81225,2461.0,2460.9,5.9765]
[1750785793066,0.81225,2461.0,2460.9,3.2078]
[1750785793262,9.6024,2461.3,2460.5,2.03102]
[1750785793263,6.62991766,2461.1,2460.5,3.2078]
[1750785793465,8.66078766,2460.7,2460.3,0.81247]
[1750785793672,7.572,2460.6,2460.2,0.81249]
[1750785793965,0.81247,2460.4,2460.3,0.81247]
[1750785794162,0.81242,2460.5,2460.2,3.2078]
[1750785794365,7.572,2460.6,2460.2,1.3306]
[1750785794565,0.81248,2460.3,2460.2,5.3509]
[1750785794769,7.572,2460.6,2460.2,4.5384]
[1750785794966,7.573,2461.0,2460.5,3.2078]
[1750785795165,0.81232,2460.8,2460.5,3.2078]
[1750785795377,0.81245,2460.4,2460.3,2.14307]
[1750785795767,0.81252,2460.2,2460.1,0.81252]
[1750785796064,0.81252,2460.2,2460.1,4.02032]
[1750785796268,0.81251,2460.2,2460.1,4.02032]
[1750785796473,0.81248,2460.4,2460.3,0.81248]
[1750785796671,0.81249,2460.3,2460.2,0.81249]
[1750785796874,7.573,2460.6,2460.1,3.2078]
[1750785797079,0.81243,2460.5,2460.4,0.81243]
[1750785797877,0.8124,2460.6,2460.5,0.81239]
[1750785799068,3.2078,2461.4,2460.6,2.03092]
[1750785799265,3.2078,2461.4,2460.7,3.44124]
[1750785799266,2.47358402,2461.3,2460.7,3.44124]
[1750785799477,0.81227,2461.0,2460.9,0.81228]
[1750785799771,0.81231,2460.8,2460.7,0.81232]
[1750785800166,7.574,2461.0,2460.2,0.8125]
[1750785800361,0.81251,2460.2,2460.1,4.02032]
[1750785800772,0.8125,2460.3,2460.2,0.81248]
[1750785800973,0.81251,2460.2,2460.1,4.02033]
[1750785801468,0.81258,2460.0,2459.9,0.81261]
[1750785801674,0.8125,2460.3,2460.2,0.81249]
[1750785801970,2.03112,2460.4,2459.7,1.3922]
[1750785802174,0.81265,2459.8,2459.7,0.81265]
[1750785802375,0.81287,2459.1,2459.0,3.2078]
[1750785802575,0.81291,2459.0,2458.6,3.2078]
[1750785802767,0.81297,2458.8,2458.6,0.81302]
[1750785802968,0.81295,2458.9,2458.7,0.81298]
[1750785803168,0.81304,2458.6,2458.5,0.27208202]
[1750785803572,7.575,2458.7,2458.5,4.29294202]
[1750785803772,7.575,2458.7,2458.5,0.27208202]
[1750785804067,0.81304,2458.6,2458.5,0.27208202]
[1750785804267,9.83771766,2459.1,2458.5,3.47988202]
[1750785804473,0.81304,2458.6,2458.5,0.27208202]
[1750785804770,7.577,2458.6,2458.5,1.08513202]
[1750785804976,7.577,2458.6,2458.5,0.27208202]
[1750785805176,13.39004,2458.6,2458.5,1e-08]
[1750785805367,20.01995766,2458.6,2458.5,1e-08]
[1750785805570,22.68285766,2458.6,2458.5,1e-08]
[1750785805768,15.10585766,2458.6,2458.5,1e-08]
[1750785806078,49.54385766,2458.6,2458.5,1e-08]
[1750785806280,50.66527594,2458.6,2458.5,1e-08]
[1750785806470,0.81337,2457.6,2457.5,3.2078]
[1750785806772,3.2078,2457.8,2457.5,0.08138351]
[1750785806974,46.808,2458.0,2457.6,0.81334]
[1750785806975,55.20025,2458.0,2457.6,0.81334]
[1750785807169,55.7052,2458.0,2457.7,0.08137689]
[1750785807371,3.2078,2457.9,2457.7,0.08137689]
[1750785807571,4.526,2457.9,2457.7,0.08137689]
[1750785807778,6.62991766,2457.8,2456.9,1.3737]
[1750785807978,4.0212,2457.6,2457.1,0.81354]
[1750785808176,1.4477,2457.5,2457.0,0.08140008]
[1750785808575,4.02118,2457.6,2457.0,0.08140008]
[1750785808777,4.6555,2457.9,2457.6,0.81337]
[1750785809079,4.6555,2457.9,2457.7,0.81333]
[1750785809378,0.81332,2457.8,2457.5,0.8134]
[1750785809577,4.6555,2457.9,2457.3,4.5241]
[1750785809882,40.8,2458.2,2458.1,0.81321]
[1750785809883,44.0078,2458.2,2458.1,0.81321]
[1750785810175,4.5361,2458.8,2458.0,3.2078]
[1750785810380,4.5361,2458.8,2457.8,8.8973]
[1750785810567,0.8133,2457.8,2457.7,3.2078]
[1750785810873,0.81346,2457.4,2457.1,0.81352]
[1750785811070,3.2078,2457.9,2457.2,3.2078]
[1750785811275,3.2078,2458.2,2457.8,0.81329]
[1750785811477,7.581,2458.4,2457.7,3.2078]
[1750785811671,4.02085,2458.6,2458.3,0.81312]
[1750785811873,3.2078,2458.6,2457.8,1.3334]
[1750785812074,1.4102,2458.5,2457.8,1.3334]
[1750785812275,36.89371766,2459.0,2458.1,2.03302]
[1750785812473,30.2638,2459.0,2458.7,0.813]
[1750785812789,2.03268,2458.6,2457.9,0.81326]
[1750785812982,0.81329,2457.9,2457.7,0.81332]
[1750785813178,3.2078,2458.0,2457.0,3.28920008]
[1750785813479,1.4102,2457.9,2457.1,1.3334]
[1750785813676,40.8,2457.8,2457.1,1.3334]
[1750785813881,0.81345,2457.4,2457.2,0.81349]
[1750785814079,0.81347,2457.3,2457.1,2.14692]
[1750785814280,18.82991766,2457.7,2457.0,3.2078]
[1750785814467,18.82991766,2457.7,2456.8,0.02032343]
[1750785814672,0.81342,2457.5,2457.3,0.81346]
[1750785814871,7.582,2457.6,2456.9,4.6451]
[1750785815070,0.81355,2457.1,2456.9,2.25088]
[1750785815374,0.81346,2457.4,2457.2,0.8135]
[1750785815770,0.81343,2457.5,2457.4,0.81344]
[1750785816073,3.2078,2457.7,2456.9,4.6451]
[1750785816279,4.02116,2457.7,2456.9,4.6451]
[1750785816474,3.2078,2457.7,2457.6,0.81337]
[1750785816686,0.81334,2457.7,2457.6,0.81337]
[1750785817178,3.2078,2457.7,2456.9,3.2078]
[1750785817378,40.8,2457.8,2457.7,0.81334]
[1750785817777,40.8,2457.8,2457.7,2.16994]
[1750785818478,40.8,2457.8,2457.7,5.37774]
[1750785819080,0.81338,2457.6,2457.4,1.4519]
[1750785819290,40.8,2457.8,2457.3,3.2078]
[1750785819481,0.81344,2457.4,2457.3,4.02124]
[1750785819678,0.81339,2457.6,2457.5,0.8134]
[1750785819876,40.8,2457.8,2457.3,3.2078]
[1750785819877,0.81335,2457.7,2457.6,0.81336]
[1750785820081,0.81337,2457.7,2457.4,1.3566]
[1750785820285,0.81339,2457.6,2457.5,0.8134]
[1750785820477,3.2078,2457.6,2457.0,3.2078]
[1750785820680,3.2078,2457.6,2457.2,0.81347]
[1750785820879,0.81352,2457.2,2457.1,0.81352]
[1750785821187,0.81352,2457.2,2457.1,2.27672]
[1750785821386,3.2078,2457.6,2457.1,1.4632]
[1750785821593,2.03352,2457.5,2457.1,1.4632]
[1750785821886,2.03354,2457.5,2457.0,3.2078]
[1750785822086,0.81358,2457.0,2456.9,4.02137]
[1750785822385,0.8136,2456.9,2456.8,2.28583343]
[1750785822584,0.8136,2456.9,2456.8,6.95683343]
[1750785822782,4.0214,2456.9,2456.8,0.02032343]
[1750785823087,0.81377,2456.4,2456.3,1.4632]
[1750785823285,0.81377,2456.4,2456.2,2.21232]
[1750785823286,0.8138,2456.3,2456.2,3.2078]
[1750785823483,0.81384,2456.2,2456.0,1.3893]
[1750785823686,0.8138,2456.3,2456.2,3.2078]
[1750785823884,40.8,2456.4,2456.3,0.8138]
[1750785824284,40.8,2456.4,2456.3,2.168]
[1750785825080,40.8,2456.4,2456.3,7.168]
[1750785825388,40.8,2456.4,2456.3,5.8138]
[1750785825591,4.02135,2457.1,2456.6,2.03425]
[1750785825791,4.02135,2457.1,2456.9,0.81359]
[1750785825792,0.81357,2457.0,2456.9,0.81359]
[1750785825992,4.02136,2457.1,2456.9,0.81359]
[1750785826193,35.015,2457.3,2457.0,0.81357]
[1750785826489,40.8,2457.1,2456.7,4.562]
[1750785826692,41.61356,2457.1,2457.0,0.81357]
[1750785826890,50.63771766,2457.1,2455.5,6.62991766]
[1750785827189,3.2078,2457.0,2456.9,0.8136]
[1750785827588,3.2078,2457.0,2456.1,4.06931]
[1750785827589,5.24178,2457.0,2456.2,2.03457]
[1750785827796,5.24178,2457.0,2456.5,1.3924]
[1750785827797,0.8137,2456.6,2456.5,1.3924]
[1750785828001,0.81366,2456.8,2456.7,0.81366]
[1750785828206,0.81379,2456.4,2456.3,0.81379]
[1750785828397,0.81379,2456.4,2456.3,1.3924]
[1750785828594,0.81379,2456.4,2456.3,2.2062]
[1750785828796,0.81379,2456.4,2455.7,2.03501]
[1750785828797,3.2078,2456.4,2455.7,2.03501]
[1750785829104,4.02159,2456.4,2456.3,0.8138]
[1750785829301,2.03457,2456.3,2455.4,5.24298]
[1750785829595,0.8139,2456.0,2455.9,0.81391]
[1750785829796,3.2078,2456.4,2455.9,16.0258]
[1750785829998,5.24225,2456.4,2455.6,7.818]
[1750785830196,3.2078,2456.4,2455.7,1.4006]
[1750785830403,0.81389,2456.1,2456.0,0.8139]
[1750785830704,4.33841116,2456.1,2455.3,2.03533]
[1750785831002,3.2078,2456.2,2455.6,3.2078]
[1750785831190,1.94579336,2456.1,2455.6,3.2078]
[1750785831391,0.81395,2455.9,2455.1,3.2078]
[1750785831589,3.2078,2456.1,2455.4,3.2078]
[1750785831807,1.13196403,2456.0,2455.5,9.2206]
[1750785832008,3.2078,2455.6,2455.0,2.03559]
[1750785832197,1.13328112,2455.5,2455.0,3.2078]
[1750785832494,1.13328112,2455.4,2454.9,3.2078]
[1750785832700,2.55128112,2455.4,2454.7,4.0]
[1750785832893,3.2078,2455.5,2455.0,0.81422]
[1750785832894,0.8142,2455.1,2455.0,0.81422]
[1750785833088,0.81422,2455.1,2454.8,1.3474]
[1750785833291,3.2078,2455.2,2454.7,4.0]
[1750785833606,4.34110439,2455.1,2454.7,4.0]
[1750785833802,9.83771766,2455.1,2454.7,4.0]
[1750785834004,4.0221,2454.8,2454.7,4.0]
[1750785834402,0.81425,2455.0,2454.7,4.0]
[1750785834706,1.13366781,2454.9,2454.7,4.0]
[1750785834902,0.81426,2455.0,2454.7,4.81432]
[1750785835107,3.2078,2455.1,2455.0,0.81423]
[1750785835405,3.2078,2455.1,2454.7,4.0]
[1750785835406,0.8143,2454.8,2454.7,4.0]
[1750785835803,9.83771766,2454.8,2454.7,4.0]
[1750785836000,4.33363922,2454.8,2454.7,4.81433]
[1750785836305,3.2078,2455.4,2454.7,9.0]
[1750785836505,6.62991766,2455.0,2454.7,4.0]
[1750785836705,4.0221,2454.8,2454.7,4.0]
[1750785837104,2.03587,2454.7,2454.0,0.81454]
[1750785837297,0.81451,2454.2,2453.9,0.81458]
[1750785837595,3.2078,2454.3,2454.2,0.8145]
[1750785837799,3.2078,2454.3,2453.9,1.3818]
[1750785838000,3.2078,2454.3,2454.2,0.8145]
[1750785838600,3.2078,2454.6,2454.5,0.8144]
[1750785838914,44.82208,2454.9,2454.7,0.8143]
[1750785839111,4.02208,2454.9,2454.7,0.81431]
[1750785839308,3.2078,2454.9,2454.4,8.492]
[1750785839603,3.2078,2454.9,2454.8,0.8143]
[1750785840205,4.02208,2454.9,2454.7,0.81432]
[1750785841214,0.81431,2454.8,2454.7,0.81433]
[1750785841412,3.2078,2454.9,2454.5,1.4671]
[1750785841607,4.02208,2454.9,2454.7,0.81432]
[1750785841918,1.3878,2455.2,2454.5,1.4671]
[1750785841919,0.81424,2455.0,2454.5,1.4671]
[1750785842107,0.81427,2454.9,2454.7,0.81432]
[1750785842312,0.8143,2454.8,2454.7,1.3967]
[1750785842509,0.81435,2454.7,2454.5,0.81438]
[1750785842818,0.81435,2454.7,2454.1,1.3368]
[1750785842819,3.2078,2454.6,2454.1,1.3368]
[1750785843016,9.83771766,2454.3,2453.7,2.7856]
[1750785843209,0.81451,2454.2,2454.1,0.81453]
[1750785843414,0.81451,2454.2,2453.7,2.03667]
[1750785843714,9.83771766,2454.3,2454.2,0.8145]
[1750785843715,3.2078,2454.3,2454.2,0.8145]
[1750785844106,4.02227,2454.3,2454.0,1.3967]
[1750785844308,3.2078,2454.3,2454.2,0.8145]
[1750785844713,0.89980661,3218.2,2454.2,10.24398]
[1750785844714,4.6058,2454.9,2454.2,10.24398]
[1750785844918,3.2078,2454.9,2454.7,0.81432]
[1750785845113,3.2078,2454.9,2454.3,3.49387]
[1750785845114,3.2078,2454.9,2454.4,5.24388]
[1750785845315,0.81432,2454.8,2454.7,0.81433]
[1750785845625,0.81469,2453.7,2452.6,15.77689]
[1750785845823,3.2078,2453.5,2453.4,0.81476]
[1750785846711,4.02253,2453.5,2453.4,0.81476]
[1750785847019,3.2078,2453.5,2453.4,1.4577]
[1750785847211,9.83771766,2453.5,2452.8,1.4435]
[1750785847412,3.2078,2453.4,2453.1,2.03712]
[1750785847620,3.2078,2453.4,2453.3,0.8148]
[1750785848127,3.2078,2453.4,2453.3,14.3098]
[1750785848414,3.2078,2453.8,2453.5,2.03681]
[1750785848614,3.2078,2453.8,2453.7,0.81466]
[1750785849219,0.8147,2453.7,2453.5,0.81473]
[1750785849519,0.8147,2453.7,2452.8,11.7048]
[1750785849520,0.81472,2453.6,2453.4,0.81476]
[1750785849723,3.2078,2453.5,2453.0,2.03725]
[1750785849911,9.83771766,2453.2,2452.5,3.2078]
[1750785850112,0.81487,2453.1,2452.9,0.81492]
[1750785850419,14.83771766,2453.2,2452.0,0.81521]
[1750785850616,0.81541,2451.5,2450.6,2.03921]
[1750785850916,0.81541,2451.5,2450.5,3.2078]
[1750785850917,3.2078,2451.4,2451.3,0.81546]
[1750785851322,3.2078,2452.0,2451.2,3.2078]
[1750785851517,3.2078,2452.0,2451.9,0.81526]
[1750785851709,3.2078,2452.0,2450.5,6.62991766]
[1750785852026,6.62991766,2452.3,2451.1,1.4388]
[1750785852027,3.2078,2451.8,2451.1,1.4388]